fUST/lending_fUST_20251120
["ID","MTS","AMOUNT","RATE_DAILY","PERIOD"]
[394443895,1763578239358,-10094.08,0.00013698,2]
[394443896,1763578239369,-10094.08,0.00013698,2]
[394443898,1763578239381,-10094.08,0.00013698,2]
[394443900,1763578239390,-500.0,0.00013698,2]
[394443902,1763578239400,-10094.08,0.00013698,2]
[394443904,1763578239409,-500.0,0.00013698,2]
[394443906,1763578239419,-10094.08,0.00013698,2]
[394443908,1763578239428,-500.0,0.00013698,2]
[394443911,1763578239439,-1046.8693042,0.00013698,2]
[394443974,1763578240161,-150.0,0.00011677,2]
[394443975,1763578240171,-2850.012714,0.00013698,2]
[394444064,1763578373377,806.44,0.00013206,30]
[394444065,1763578377010,151.0,0.000117,2]
[394444066,1763578439440,867.0,0.00011616,2]
[394444068,1763578447595,867.0,0.00011616,2]
[394444070,1763578462648,867.0,0.00011616,2]
[394444071,1763578470385,867.0,0.00011616,2]
[394444074,1763578485565,6381.01,0.00011616,2]
[394444075,1763578485584,10000.01,0.00011616,2]
[394444076,1763578489952,-3141.95142139,0.00011616,2]
[394444077,1763578493363,3716.10715722,0.00011616,2]
[394444078,1763578493386,8754.36948498,0.00011616,2]
[394444079,1763578501949,600.0,0.00011616,2]
[394444080,1763578509712,600.0,0.00011615,2]
[394444081,1763578532960,45.64051502,0.00011615,2]
[394444082,1763578532984,1754.35948498,0.00011615,2]
[394444083,1763578548742,1800.0,0.00011615,2]
[394444084,1763578553328,-300.0,0.00011732,2]
[394444085,1763578553359,-300.0,0.00011732,2]
[394444086,1763578553388,-1200.0,0.00011732,2]
[394444087,1763578553418,-500.0,0.00011733,2]
[394444088,1763578553461,-500.0,0.00011733,2]
[394444089,1763578553500,-500.0,0.00011733,2]
[394444090,1763578553537,-603.61779246,0.00011733,2]
[394444091,1763578553571,-500.0,0.00011733,2]
[394444092,1763578553607,-500.0,0.00011733,2]
[394444093,1763578553808,-500.0,0.00011733,2]
[394444094,1763578553841,-500.0,0.00011733,2]
[394444095,1763578553880,-500.0,0.00011733,2]
[394444096,1763578553915,-500.0,0.00011733,2]
[394444097,1763578553955,-500.0,0.00011733,2]
[394444098,1763578553991,-270.6160313,0.00011733,2]
[394444099,1763578554024,-267.05984993,0.00011733,2]
[394444100,1763578554055,-500.0,0.00011733,2]
[394444101,1763578554094,-500.0,0.00011733,2]
[394444102,1763578554126,-500.0,0.00011733,2]
[394444103,1763578554158,-424.65823754,0.00011733,2]
[394444104,1763578554290,-75.34176246,0.00011733,2]
[394444105,1763578554322,-500.0,0.00011733,2]
[394444106,1763578554355,-500.0,0.00011733,2]
[394444107,1763578554386,-520.44531908,0.00011733,2]
[394444108,1763578554417,-238.80608854,0.00011733,2]
[394444109,1763578554453,-500.0,0.00011733,2]
[394444110,1763578554485,-500.0,0.00011733,2]
[394444111,1763578554520,-500.0,0.00011733,2]
[394444112,1763578554555,-500.0,0.00011733,2]
[394444113,1763578554588,-500.0,0.00011733,2]
[394444114,1763578554619,-500.0,0.00011733,2]
[394444115,1763578554699,-500.0,0.00011733,2]
[394444116,1763578554730,-500.0,0.00011733,2]
[394444117,1763578554764,-500.0,0.00011733,2]
[394444118,1763578554799,-500.0,0.00011733,2]
[394444119,1763578554833,-500.0,0.00011733,2]
[394444120,1763578554869,-500.0,0.00011733,2]
[394444121,1763578554904,-500.0,0.00011733,2]
[394444122,1763578554940,-500.0,0.00011733,2]
[394444123,1763578554973,-500.0,0.00011733,2]
[394444124,1763578555007,-500.0,0.00011733,2]
[394444125,1763578555253,-500.0,0.00011733,2]
[394444126,1763578555285,-500.0,0.00011733,2]
[394444127,1763578555318,-500.0,0.00011733,2]
[394444128,1763578555350,-500.0,0.00011733,2]
[394444129,1763578555382,-500.0,0.00011733,2]
[394444130,1763578555414,-500.0,0.00011733,2]
[394444131,1763578555447,-500.0,0.00011733,2]
[394444132,1763578555483,-355.91567522,0.00011733,2]
[394444133,1763578555516,-500.0,0.00011733,2]
[394444134,1763578555548,-500.0,0.00011733,2]
[394444135,1763578555693,-500.0,0.00011733,2]
[394444136,1763578555728,-500.0,0.00011733,2]
[394444137,1763578555763,-500.0,0.00011733,2]
[394444138,1763578555796,-500.0,0.00011733,2]
[394444139,1763578555831,-500.0,0.00011733,2]
[394444140,1763578555864,-500.0,0.00011733,2]
[394444141,1763578555899,-500.0,0.00011733,2]
[394444142,1763578555932,-500.0,0.00011733,2]
[394444143,1763578555969,-499.99999999,0.00011733,2]
[394444144,1763578556004,-500.0,0.00011733,2]
[394444145,1763578556102,-500.0,0.00011733,2]
[394444146,1763578556134,-500.0,0.00011733,2]
[394444147,1763578556164,-500.0,0.00011733,2]
[394444148,1763578556197,-500.0,0.00011733,2]
[394444149,1763578556229,-500.0,0.00011733,2]
[394444150,1763578556261,-500.0,0.00011733,2]
[394444151,1763578556292,-500.0,0.00011733,2]
[394444152,1763578556323,-500.0,0.00011733,2]
[394444153,1763578556356,-500.0,0.00011733,2]
[394444154,1763578556387,-500.0,0.00011733,2]
[394444155,1763578556497,-500.0,0.00011733,2]
[394444156,1763578556530,-500.0,0.00011733,2]
[394444157,1763578556562,-500.0,0.00011733,2]
[394444158,1763578556594,-500.0,0.00011733,2]
[394444159,1763578556627,-500.0,0.00011733,2]
[394444160,1763578556659,-500.0,0.00011733,2]
[394444161,1763578556692,-389.54618614,0.00011733,2]
[394444162,1763578556727,-500.0,0.00011733,2]
[394444163,1763578556759,-500.0,0.00011733,2]
[394444164,1763578556791,-500.0,0.00011733,2]
[394444165,1763578556956,-500.0,0.00011733,2]
[394444166,1763578556989,-500.0,0.00011733,2]
[394444167,1763578557026,-500.0,0.00011733,2]
[394444168,1763578557058,-500.0,0.00011733,2]
[394444169,1763578557091,-500.0,0.00011733,2]
[394444170,1763578557126,-500.0,0.00011733,2]
[394444171,1763578557259,-500.0,0.00011733,2]
[394444172,1763578557293,-500.0,0.00011733,2]
[394444173,1763578557326,-500.0,0.00011733,2]
[394444174,1763578557361,-500.0,0.00011733,2]
[394444175,1763578559138,-150.0,0.00011732,2]
[394444176,1763578559170,-500.0,0.00011733,2]
[394444177,1763578559202,-500.0,0.00011733,2]
[394444178,1763578559235,-500.0,0.00011733,2]
[394444179,1763578559267,-500.0,0.00011733,2]
[394444180,1763578559298,-500.0,0.00011733,2]
[394444181,1763578559329,-500.0,0.00011733,2]
[394444182,1763578559357,-567.0,0.00011733,2]
[394444183,1763578559621,-150.0,0.00011615,2]
[394444184,1763578561531,-6043.47381386,0.00011734,2]
[394444185,1763578561550,-10000.01,0.00011734,2]
[394444186,1763578562393,-10000.01,0.00011734,2]
[394444187,1763578562503,-10000.01,0.00011734,2]
[394444188,1763578562802,-10000.01,0.00011734,2]
[394444189,1763578562938,-300.0,0.00011733,2]
[394444190,1763578562973,-3956.48618614,0.00011734,2]
[394444191,1763578563006,-332.56,0.00011734,2]
[394444192,1763578563073,500.0,0.00011733,2]
[394444193,1763578563120,321.91762772,0.00011733,2]
[394444194,1763578563157,-178.08237228,0.00011733,2]
[394444195,1763578563188,500.0,0.00011733,2]
[394444196,1763578563222,500.0,0.00011733,2]
[394444197,1763578563255,500.0,0.00011733,2]
[394444198,1763578563308,500.0,0.00011733,2]
[394444199,1763578563356,500.0,0.00011733,2]
[394444200,1763578571966,500.0,0.00011618,2]
[394444202,1763578579744,6643.84525544,0.00011733,2]
[394444203,1763578579770,10000.01,0.00011733,2]
[394444204,1763578579793,10000.01,0.00011733,2]
[394444205,1763578579816,10000.01,0.00011733,2]
[394444206,1763578579837,10000.01,0.00011733,2]
[394444207,1763578579859,888.93179618,0.00011733,2]
[394444211,1763578587726,1351.81714964,0.00011733,2]
[394444219,1763578596065,8648.19285036,0.00011733,2]
[394444220,1763578596089,10000.01,0.00011733,2]
[394444221,1763578596111,10000.01,0.00011733,2]
[394444222,1763578596132,10000.01,0.00011733,2]
[394444223,1763578596154,10000.01,0.00011733,2]
[394444231,1763578611789,219.47669144,0.000115,2]
[394444232,1763578622018,152.32,5e-05,2]
[394444233,1763578622355,152.32,5.4e-05,2]
[394444234,1763578622679,152.32,5.8e-05,2]
[394444235,1763578623007,152.32,6.2e-05,2]
[394444236,1763578623298,152.32,6.6e-05,2]
[394444237,1763578623575,152.32,7e-05,2]
[394444238,1763578623861,152.32,7.4e-05,2]
[394444239,1763578624228,152.32,7.8e-05,2]
[394444240,1763578787309,1303.31860433,0.00011499,2]
[394444241,1763578795574,1303.31860433,0.00011499,2]
[394444242,1763578808067,17300.0,0.0004037,20]
[394444243,1763578811701,5045.68745812,0.00011499,2]
[394444244,1763578819405,5045.68745812,0.00011499,2]
[394444245,1763578819863,448.51635076,0.0004037,20]
[394444250,1763578835248,5045.68745812,0.00011499,2]
[394444251,1763578843034,5045.68745812,0.00011498,2]
[394444252,1763578859271,5045.68745812,0.00011498,2]
[394444253,1763578866943,300.0,0.00011497,2]
[394444254,1763578882105,300.0,0.00011497,2]
[394444255,1763578889839,300.0,0.00011497,2]
[394444256,1763578894575,318.7297082,0.0004037,120]
[394444257,1763578905554,300.0,0.00011497,2]
[394444258,1763578913366,300.0,0.00011497,2]
[394444260,1763578928568,150.0,0.00011497,2]
[394444261,1763578936265,150.0,0.00011497,2]
[394444262,1763578952012,150.0,0.00011497,2]
[394444263,1763578960449,150.0,0.00011497,2]
[394444268,1763578975600,150.0,0.00011497,2]
[394444269,1763578983376,150.0,0.00011497,2]
[394444270,1763578998619,300.0,0.00011497,2]
[394444271,1763579007015,300.0,0.00011497,2]
[394444272,1763579023256,300.0,0.00011497,2]
[394444273,1763579031058,300.0,0.00011497,2]
[394444274,1763579046718,300.0,0.00011497,2]
[394444275,1763579055506,300.0,0.00011497,2]
[394444276,1763579071936,300.0,0.00011497,2]
[394444277,1763579079726,5045.68745812,0.00011497,2]
[394444278,1763579095384,5045.68745812,0.00011497,2]
[394444279,1763579103146,5045.68745812,0.00011497,2]
[394444283,1763579114737,7700.0,0.00040365,120]
[394444286,1763579118925,1500.0,0.00011496,2]
[394444287,1763579127360,1500.0,0.00011496,2]
[394444289,1763579142558,1500.0,0.00011496,2]
[394444290,1763579150406,1500.0,0.00011496,2]
[394444291,1763579165521,1500.0,0.00011496,2]
[394444292,1763579173282,1500.0,0.00011496,2]
[394444293,1763579188999,1500.0,0.00011496,2]
[394444294,1763579196864,1500.0,0.00011496,2]
[394444296,1763579213067,1500.0,0.00011496,2]
[394444297,1763579214676,867.0,0.00026,120]
[394444298,1763579220882,1500.0,0.00011496,2]
[394444299,1763579222229,153.54,5e-05,2]
[394444300,1763579222547,153.54,5.1e-05,2]
[394444301,1763579222830,153.54,5.2e-05,2]
[394444302,1763579223162,153.54,5.4e-05,2]
[394444303,1763579223513,153.54,5.5e-05,2]
[394444304,1763579223730,153.54,5.6e-05,2]
[394444305,1763579224013,153.54,5.7e-05,2]
[394444306,1763579224416,153.54,5.8e-05,2]
[394444307,1763579224690,153.54,6e-05,2]
[394444308,1763579225730,153.54,6.1e-05,2]
[394444309,1763579226026,153.54,6.2e-05,2]
[394444310,1763579226331,153.54,6.3e-05,2]
[394444313,1763579226668,153.54,6.4e-05,2]
[394444314,1763579226990,153.54,6.6e-05,2]
[394444315,1763579227310,153.54,6.7e-05,2]
[394444316,1763579227589,153.54,6.8e-05,2]
[394444317,1763579227864,153.54,6.9e-05,2]
[394444318,1763579228175,153.54,7e-05,2]
[394444319,1763579228443,153.54,7.2e-05,2]
[394444320,1763579228765,153.54,7.3e-05,2]
[394444321,1763579229085,153.54,7.4e-05,2]
[394444322,1763579229356,153.54,7.5e-05,2]
[394444323,1763579229634,153.54,7.6e-05,2]
[394444324,1763579229909,153.54,7.8e-05,2]
[394444325,1763579230201,153.54,7.9e-05,2]
[394444326,1763579231652,153.54,8e-05,2]
[394444327,1763579232090,153.54,8.1e-05,2]
[394444328,1763579232381,153.54,8.3e-05,2]
[394444329,1763579236083,153.54,8.019e-05,2]
[394444330,1763579243886,1500.0,0.00011496,2]
[394444331,1763579259125,1500.0,0.00011496,2]
[394444332,1763579266953,1500.0,0.00011496,2]
[394444333,1763579282131,1968.0,0.00011496,2]
[394444334,1763579289936,1968.0,0.00011496,2]
[394444335,1763579305158,1968.0,0.00011496,2]
[394444336,1763579313417,1968.0,0.00011496,2]
[394444337,1763579328629,699.00681671,0.00011496,2]
[394444339,1763579336948,699.00681671,0.00011496,2]
[394444340,1763579341849,-502.27170212,0.00011612,2]
[394444341,1763579341895,-196.73511459,0.00011612,2]
[394444342,1763579341938,-1200.0,0.00011612,2]
[394444343,1763579341978,-468.0,0.00011612,2]
[394444344,1763579342015,-150.0,0.00011612,2]
[394444345,1763579342048,-50000.0,0.00011613,2]
[394444346,1763579342084,-443.14,0.00011615,2]
[394444347,1763579342118,-183.731,0.00011615,2]
[394444348,1763579342152,-890000.0,0.00011852,2]
[394444349,1763579342185,-500.0,0.00011873,2]
[394444350,1763579342217,-500.0,0.00011873,2]
[394444351,1763579342249,-500.0,0.00011873,2]
[394444352,1763579342283,-151.0,0.000119,2]
[394444353,1763579342317,-151.0,0.000119,2]
[394444354,1763579342502,-151.0,0.000119,2]
[394444355,1763579342536,-151.0,0.000119,2]
[394444356,1763579342570,-151.0,0.000119,2]
[394444357,1763579342606,-151.0,0.000119,2]
[394444358,1763579342645,-151.0,0.000119,2]
[394444359,1763579342681,-151.0,0.000119,2]
[394444360,1763579342714,-151.0,0.000119,2]
[394444361,1763579342747,-151.0,0.000121,2]
[394444362,1763579342783,-151.0,0.000123,2]
[394444363,1763579342819,-183.42,0.00012329,2]
[394444364,1763579342855,-152.85,0.00012329,2]
[394444365,1763579342888,-764.29,0.00012329,2]
[394444366,1763579342922,-1481.25182932,0.00012373,2]
[394444367,1763579342958,-1000.0,0.00012421,2]
[394444368,1763579342992,-1000.0,0.00012421,2]
[394444369,1763579343027,-520.37042253,0.00012421,2]
[394444370,1763579343062,-151.0,0.000125,2]
[394444371,1763579343100,-151.0,0.000127,2]
[394444372,1763579343135,-666.0,0.00012773,2]
[394444373,1763579343172,-151.0,0.000129,2]
[394444374,1763579343211,-7504.12448357,0.000129,2]
[394444375,1763579343248,-1500.0,0.00012968,2]
[394444376,1763579343283,-1008.93431054,0.00012968,2]
[394444377,1763579343317,-151.0,0.000131,2]
[394444378,1763579343356,-151.0,0.000133,2]
[394444379,1763579343390,-4841.77619272,0.00013356,2]
[394444380,1763579343423,-163.42,0.000134,2]
[394444381,1763579343457,-163.42,0.000134,2]
[394444382,1763579343492,-163.42,0.000134,2]
[394444383,1763579343527,-163.42,0.000134,2]
[394444384,1763579343566,-163.42,0.000134,2]
[394444385,1763579343608,-150.97,0.000134,2]
[394444386,1763579343647,-414.92008594,0.00013445,2]
[394444387,1763579343686,-151.0,0.000135,2]
[394444388,1763579343725,-500.0,0.000135,2]
[394444389,1763579343766,-207.45,0.00013513,2]
[394444390,1763579343806,-2000.0,0.00013516,2]
[394444391,1763579343845,-207.45,0.00013527,2]
[394444392,1763579343889,-388.92462879,0.00013559,2]
[394444393,1763579343930,-4841.77619272,0.00013572,2]
[394444394,1763579343973,-177.0,0.00013612,2]
[394444395,1763579344016,-500.0,0.00013673,2]
[394444396,1763579344059,-500.0,0.00013673,2]
[394444397,1763579344096,-500.0,0.00013673,2]
[394444398,1763579344133,-500.0,0.00013673,2]
[394444399,1763579344167,-500.0,0.00013673,2]
[394444400,1763579344205,-500.0,0.00013673,2]
[394444401,1763579344245,-500.0,0.00013673,2]
[394444402,1763579344282,-500.0,0.00013673,2]
[394444403,1763579344321,-500.0,0.00013673,2]
[394444404,1763579344359,-500.0,0.00013673,2]
[394444405,1763579344393,-500.0,0.00013673,2]
[394444406,1763579344426,-500.0,0.00013673,2]
[394444407,1763579344461,-500.0,0.00013673,2]
[394444408,1763579344498,-500.0,0.00013673,2]
[394444409,1763579344535,-500.0,0.00013673,2]
[394444410,1763579344573,-500.0,0.00013673,2]
[394444411,1763579344613,-500.0,0.00013673,2]
[394444412,1763579344654,-263.70606165,0.00013673,2]
[394444413,1763579344692,-500.0,0.00013673,2]
[394444414,1763579344737,-500.0,0.00013698,2]
[394444415,1763579344778,-256.37811665,0.00013698,2]
[394444416,1763579344817,-9996.6,0.00013698,2]
[394444417,1763579344864,-2443.82985886,0.00013698,2]
[394444418,1763579347065,143626.00728076,0.00011513,2]
[394444419,1763579353151,-3132.81050333,0.00011398,2]
[394444420,1763579411083,201.93286099,0.00040363,120]
[394444465,1763579432211,-755.02969588,0.00011284,2]
[394444467,1763579432221,-300.0,0.00011397,2]
[394444470,1763579432236,-1200.0,0.00011397,2]
[394444472,1763579432245,-7015.97030412,0.00011398,2]
[394444474,1763579432256,-12198.99579985,0.00011398,2]
[394444476,1763579432267,-2600.0,0.00011398,2]
[394444478,1763579432279,-2750.0,0.00011398,2]
[394444480,1763579432291,-2385.30852666,0.00011398,2]
[394444722,1763579438145,-357.54474734,0.00011397,2]
[394444723,1763579438155,-163.15737457,0.00011397,2]
[394444724,1763579438164,-500.0,0.00011397,2]
[394444725,1763579438174,-500.0,0.00011397,2]
[394444726,1763579438185,-500.0,0.00011397,2]
[394444727,1763579438194,-500.0,0.00011397,2]
[394444728,1763579438203,-500.0,0.00011397,2]
[394444729,1763579438213,-500.0,0.00011397,2]
[394444730,1763579438222,-500.0,0.00011397,2]
[394444731,1763579438233,-500.0,0.00011397,2]
[394444732,1763579438245,-500.0,0.00011397,2]
[394444733,1763579438254,-500.0,0.00011397,2]
[394444734,1763579438264,-500.0,0.00011397,2]
[394444735,1763579438274,-500.0,0.00011397,2]
[394444736,1763579438284,-544.31254827,0.00011397,2]
[394444737,1763579438293,-500.0,0.00011397,2]
[394444738,1763579438302,-500.0,0.00011397,2]
[394444739,1763579438313,-500.0,0.00011397,2]
[394444740,1763579438323,-500.0,0.00011397,2]
[394444741,1763579438332,-500.0,0.00011397,2]
[394444742,1763579438342,-500.0,0.00011397,2]
[394444743,1763579438351,-500.0,0.00011397,2]
[394444744,1763579438361,-500.0,0.00011397,2]
[394444745,1763579438371,-500.0,0.00011397,2]
[394444746,1763579438380,-500.0,0.00011397,2]
[394444747,1763579438390,-500.0,0.00011397,2]
[394444748,1763579438399,-500.0,0.00011397,2]
[394444749,1763579438409,-500.0,0.00011397,2]
[394444750,1763579438418,-500.0,0.00011397,2]
[394444751,1763579438428,-500.0,0.00011397,2]
[394444752,1763579438438,-500.0,0.00011397,2]
[394444753,1763579438448,-452.3688538,0.00011397,2]
[394444754,1763579438458,-500.0,0.00011397,2]
[394444755,1763579438468,-3717.39942785,0.00011398,2]
[394444756,1763579438580,-746373.99271924,0.00011513,2]
[394444757,1763579438590,-50000.0,0.00011612,2]
[394444758,1763579438600,-420.0,0.00012519,2]
[394444759,1763579438609,-1200.0,0.00012537,2]
[394444760,1763579438618,-3874.48603843,0.00013108,2]
[394444761,1763579438627,-189.11322628,0.00013153,2]
[394444762,1763579438636,-3874.48603843,0.0001344,2]
[394444763,1763579438646,-440.72197884,0.0001347,2]
[394444764,1763579438655,-500.0,0.00013675,2]
[394444765,1763579438664,-501.72405648,0.00013675,2]
[394444766,1763579438674,-7552.77014114,0.00013698,2]
[394444767,1763579438685,-9996.6,0.00013698,2]
[394444768,1763579438694,-9996.6,0.00013698,2]
[394444769,1763579438703,-9996.6,0.00013698,2]
[394444770,1763579438712,-9996.6,0.00013698,2]
[394444771,1763579438722,-9996.6,0.00013698,2]
[394444772,1763579438732,-9996.6,0.00013698,2]
[394444773,1763579438742,-9996.6,0.00013698,2]
[394444774,1763579438752,-9996.6,0.00013698,2]
[394444775,1763579438761,-9996.6,0.00013698,2]
[394444776,1763579438771,-9996.6,0.00013698,2]
[394444777,1763579438780,-9996.6,0.00013698,2]
[394444778,1763579438790,-9996.6,0.00013698,2]
[394444779,1763579438800,-9996.6,0.00013698,2]
[394444780,1763579438809,-9996.6,0.00013698,2]
[394444781,1763579438818,-9996.6,0.00013698,2]
[394444782,1763579438828,-9996.6,0.00013698,2]
[394444783,1763579438837,-9996.6,0.00013698,2]
[394444784,1763579438847,-9996.6,0.00013698,2]
[394444785,1763579438856,-9996.6,0.00013698,2]
[394444786,1763579438866,-9996.6,0.00013698,2]
[394444787,1763579438876,-9996.6,0.00013698,2]
[394444788,1763579438886,-9996.62984025,0.00013698,2]
[394444789,1763579438896,-500.0,0.00013698,2]
[394444790,1763579438905,-500.0,0.00013698,2]
[394444791,1763579438915,-500.0,0.00013698,2]
[394444792,1763579438927,-500.0,0.00013698,2]
[394444793,1763579438937,-500.0,0.00013698,2]
[394444794,1763579438947,-500.0,0.00013698,2]
[394444795,1763579438957,-500.0,0.00013698,2]
[394444796,1763579438967,-500.0,0.00013698,2]
[394444797,1763579438977,-500.0,0.00013698,2]
[394444798,1763579438987,-500.0,0.00013698,2]
[394444799,1763579438996,-500.0,0.00013698,2]
[394444800,1763579439005,-500.0,0.00013698,2]
[394444801,1763579439015,-500.0,0.00013698,2]
[394444802,1763579439024,-500.0,0.00013698,2]
[394444803,1763579439034,-500.0,0.00013698,2]
[394444804,1763579439043,-500.0,0.00013698,2]
[394444805,1763579439053,-500.0,0.00013698,2]
[394444806,1763579439062,-500.0,0.00013698,2]
[394444807,1763579439071,-500.0,0.00013698,2]
[394444808,1763579439080,-500.0,0.00013698,2]
[394444809,1763579439089,-500.0,0.00013698,2]
[394444810,1763579439098,-500.0,0.00013698,2]
[394444811,1763579439107,-2023.6736416,0.00013699,2]
[394444812,1763579439116,-1145.32477,0.00013699,2]
[394444813,1763579439126,-243.987947,0.00013699,2]
[394444814,1763579439135,-1000.0,0.00013699,2]
[394444815,1763579439145,-3780.5942089,0.00013699,2]
[394444816,1763579439154,-793.29956192,0.00013718,2]
[394444817,1763579439163,-413.05572346,0.00013736,2]
[394444818,1763579439176,-340.40380731,0.00013742,2]
[394444819,1763579439186,-587.0,0.00013751,2]
[394444820,1763579439195,-3874.48603843,0.00013773,2]
[394444821,1763579439205,-558.41505035,0.00013803,2]
[394444822,1763579439214,-1410.3103323,0.00013968,2]
[394444823,1763579439224,-444.48529004,0.00013971,2]
[394444824,1763579439236,-500.0,0.00013972,2]
[394444825,1763579439247,-3874.48603843,0.00014106,2]
[394444826,1763579439256,-2203.60989422,0.00014217,2]
[394444827,1763579439265,-504.76291917,0.00014221,2]
[394444828,1763579439276,-506.86425752,0.00014221,2]
[394444829,1763579439285,-1000.0,0.00014221,2]
[394444830,1763579439294,-500.0,0.00014221,2]
[394444831,1763579439304,-1008.7135632,0.00014221,2]
[394444832,1763579439315,-1000.0,0.00014221,2]
[394444833,1763579439324,-455.285,0.00014221,2]
[394444834,1763579439334,-1000.0,0.00014223,2]
[394444835,1763579439343,-500.0,0.00014246,2]
[394444836,1763579439352,-3874.48603843,0.00014439,2]
[394444837,1763579439362,-3173.19824767,0.00014465,2]
[394444838,1763579439372,-439.88252609,0.00014689,3]
[394444839,1763579439382,-211.18536599,0.00014689,3]
[394444840,1763579439391,-1759.53010434,0.0001469,3]
[394444841,1763579439400,-3958.94273478,0.0001469,3]
[394444842,1763579439410,-844.74146395,0.0001469,3]
[394444843,1763579439418,-1158.15770449,0.00014768,2]
[394444844,1763579439428,-585.03780831,0.00014768,2]
[394444845,1763579439437,-1500.0,0.00014771,2]
[394444846,1763579439446,-3874.48603843,0.00014771,2]
[394444847,1763579439456,-800.0,0.00015068,2]
[394444848,1763579439466,-500.0,0.00015083,2]
[394444849,1763579439475,-500.0,0.00015083,2]
[394444850,1763579439485,-579.97833016,0.00015083,2]
[394444851,1763579439495,-500.0,0.00015083,2]
[394444852,1763579439504,-309.59582408,0.00015083,2]
[394444853,1763579439514,-500.0,0.00015083,2]
[394444854,1763579439523,-446.31080594,0.00015083,2]
[394444855,1763579439534,-3874.48603843,0.00015104,2]
[394444856,1763579439543,-823.0,0.00015105,2]
[394444857,1763579439553,-436.99426016,0.00015143,3]
[394444858,1763579439563,-1747.97704064,0.00015145,3]
[394444859,1763579439572,-501.45708738,0.00015188,2]
[394444860,1763579439582,-199.45694926,0.00015194,3]
[394444861,1763579439591,-580.81477565,0.00015227,2]
[394444862,1763579439601,-460.50338451,0.00015304,2]
[394444863,1763579439613,-2000.0,0.00015319,2]
[394444864,1763579439623,-3874.48603843,0.00015437,2]
[394444865,1763579439633,-1045.46659618,0.00015456,2]
[394444866,1763579439642,-204.0,0.00015612,2]
[394444867,1763579439652,-1000.0,0.00015631,2]
[394444868,1763579439661,-1000.0,0.00015631,2]
[394444869,1763579439671,-1000.0,0.00015631,2]
[394444871,1763579439681,-519.76053843,0.00015662,2]
[394444872,1763579439690,-1858.60728209,0.00015683,2]
[394444873,1763579439700,-828.90609211,0.00015728,2]
[394444874,1763579439710,-3874.48603843,0.0001577,2]
[394444875,1763579439719,-1397.13880853,0.00015775,2]
[394444876,1763579439728,-2500.0,0.00015867,2]
[394444877,1763579439738,-311.41985011,0.00015906,3]
[394444878,1763579439748,-2904.07387827,0.00015912,2]
[394444879,1763579439757,-935.56896917,0.00015996,2]
[394444880,1763579439768,-150.0863298,0.00016018,2]
[394444881,1763579439777,-4181.86638471,0.0001614,2]
[394444882,1763579439786,-1472.13721959,0.00016152,2]
[394444883,1763579439795,-1500.0,0.00016178,2]
[394444884,1763579439804,-1000.0,0.00016178,2]
[394444885,1763579439813,-1500.0,0.00016178,2]
[394444886,1763579439823,-833.691327,0.00016196,2]
[394444887,1763579439832,-40064.07525375,0.00016196,2]